fUSD/lending_fUSD_20250505
["ID","MTS","AMOUNT","RATE_DAILY","PERIOD"]
[359994994,1746468642354,-450.0,0.00019998,2]
[359994995,1746468642364,-450.0,0.00019998,2]
[359994996,1746468642373,-450.0,0.00019998,2]
[359994997,1746468642382,-450.0,0.00019998,2]
[359994998,1746468642391,-184.63802733,0.00019998,2]
[359994999,1746468642400,-450.0,0.00019998,2]
[359995000,1746468642409,-450.0,0.00019998,2]
[359995001,1746468642419,-289.95,0.00019998,2]
[359995002,1746468642428,-450.0,0.00019998,2]
[359995003,1746468642437,-583.08,0.00019998,2]
[359995004,1746468642447,-450.0,0.00019998,2]
[359995005,1746468642456,-450.0,0.00019998,2]
[359995006,1746468642466,-450.0,0.00019998,2]
[359995007,1746468642475,-450.0,0.00019998,2]
[359995008,1746468642484,-450.0,0.00019998,2]
[359995009,1746468642493,-450.0,0.00019998,2]
[359995010,1746468642503,-500.0,0.00019998,2]
[359995011,1746468642511,-450.0,0.00019998,2]
[359995012,1746468642521,-450.0,0.00019998,2]
[359995013,1746468642532,-450.0,0.00019998,2]
[359995014,1746468642544,-450.0,0.00019998,2]
[359995015,1746468642553,-526.42,0.00019998,2]
[359995016,1746468642563,-599.27,0.00019998,2]
[359995017,1746468642572,-450.0,0.00019998,2]
[359995018,1746468642582,-450.0,0.00019998,2]
[359995019,1746468642592,-450.0,0.00019998,2]
[359995020,1746468642602,-450.0,0.00019998,2]
[359995021,1746468642611,-450.0,0.00019998,2]
[359995022,1746468642620,-450.0,0.00019998,2]
[359995023,1746468642630,-450.0,0.00019998,2]
[359995024,1746468642639,-450.0,0.00019998,2]
[359995025,1746468642649,-450.0,0.00019998,2]
[359995026,1746468642658,-450.0,0.00019998,2]
[359995027,1746468642667,-450.0,0.00019998,2]
[359995028,1746468642677,-450.0,0.00019998,2]
[359995029,1746468642686,-450.0,0.00019998,2]
[359995030,1746468642696,-450.0,0.00019998,2]
[359995031,1746468642705,-450.0,0.00019998,2]
[359995032,1746468642715,-450.0,0.00019998,2]
[359995033,1746468642724,-450.0,0.00019998,2]
[359995034,1746468642734,-450.0,0.00019998,2]
[359995035,1746468642743,-450.0,0.00019998,2]
[359995036,1746468642752,-450.0,0.00019998,2]
[359995037,1746468642762,-450.0,0.00019998,2]
[359995038,1746468642771,-450.0,0.00019998,2]
[359995039,1746468642782,-450.0,0.00019998,2]
[359995040,1746468642791,-450.0,0.00019998,2]
[359995041,1746468642801,-450.0,0.00019998,2]
[359995042,1746468642811,-450.0,0.00019998,2]
[359995043,1746468642821,-450.0,0.00019998,2]
[359995044,1746468642830,-450.0,0.00019998,2]
[359995045,1746468642840,-450.0,0.00019998,2]
[359995046,1746468642849,-450.0,0.00019998,2]
[359995047,1746468642858,-450.0,0.00019998,2]
[359995048,1746468642868,-450.0,0.00019998,2]
[359995049,1746468642878,-500.0,0.00019998,2]
[359995050,1746468642889,-450.0,0.00019998,2]
[359995051,1746468642898,-450.0,0.00019998,2]
[359995052,1746468642907,-450.0,0.00019998,2]
[359995053,1746468642917,-450.0,0.00019998,2]
[359995054,1746468642926,-450.0,0.00019998,2]
[359995055,1746468642935,-450.0,0.00019998,2]
[359995056,1746468642945,-450.0,0.00019998,2]
[359995057,1746468642954,-450.0,0.00019998,2]
[359995058,1746468642963,-450.0,0.00019998,2]
[359995059,1746468642972,-450.0,0.00019998,2]
[359995060,1746468642981,-450.0,0.00019998,2]
[359995061,1746468642991,-450.0,0.00019998,2]
[359995062,1746468643000,-450.0,0.00019998,2]
[359995064,1746468643010,-450.0,0.00019998,2]
[359995066,1746468643019,-487.18,0.00019998,2]
[359995067,1746468643028,-450.0,0.00019998,2]
[359995068,1746468643037,-487.14,0.00019998,2]
[359995069,1746468643046,-450.0,0.00019998,2]
[359995070,1746468643055,-450.0,0.00019998,2]
[359995071,1746468643065,-450.0,0.00019998,2]
[359995073,1746468643077,-450.0,0.00019998,2]
[359995074,1746468643086,-450.0,0.00019998,2]
[359995076,1746468643095,-450.0,0.00019998,2]
[359995077,1746468643105,-450.0,0.00019998,2]
[359995078,1746468643115,-450.0,0.00019998,2]
[359995079,1746468643124,-450.0,0.00019998,2]
[359995080,1746468643135,-450.0,0.00019998,2]
[359995081,1746468643144,-450.0,0.00019998,2]
[359995082,1746468643155,-450.0,0.00019998,2]
[359995083,1746468643164,-450.0,0.00019998,2]
[359995084,1746468643174,-450.0,0.00019998,2]
[359995085,1746468643183,-450.0,0.00019998,2]
[359995086,1746468643192,-450.0,0.00019998,2]
[359995087,1746468643201,-1725.77,0.00019998,2]
[359995088,1746468643210,-450.0,0.00019998,2]
[359995089,1746468643219,-450.0,0.00019998,2]
[359995090,1746468643228,-450.0,0.00019998,2]
[359995091,1746468643237,-450.0,0.00019998,2]
[359995092,1746468643247,-450.0,0.00019998,2]
[359995093,1746468643257,-450.0,0.00019998,2]
[359995094,1746468643265,-721.09,0.00019998,2]
[359995095,1746468643275,-450.0,0.00019998,2]
[359995096,1746468643286,-450.0,0.00019998,2]
[359995097,1746468643296,-450.0,0.00019998,2]
[359995098,1746468643305,-450.0,0.00019998,2]
[359995099,1746468643314,-450.0,0.00019998,2]
[359995100,1746468643324,-450.0,0.00019998,2]
[359995101,1746468643333,-450.0,0.00019998,2]
[359995102,1746468643342,-459.15454204,0.00019998,2]
[359995103,1746468643352,-738.72,0.00019998,2]
[359995104,1746468643361,-450.0,0.00019998,2]
[359995105,1746468643370,-457.59240809,0.00019998,2]
[359995106,1746468643380,-581.18,0.00019998,2]
[359995107,1746468643389,-450.0,0.00019998,2]
[359995108,1746468643398,-450.0,0.00019998,2]
[359995109,1746468643408,-450.0,0.00019998,2]
[359995110,1746468643418,-450.0,0.00019998,2]
[359995111,1746468643427,-450.0,0.00019998,2]
[359995112,1746468643437,-450.0,0.00019998,2]
[359995113,1746468643446,-450.0,0.00019998,2]
[359995114,1746468643455,-450.0,0.00019998,2]
[359995115,1746468643465,-450.0,0.00019998,2]
[359995116,1746468643474,-450.0,0.00019998,2]
[359995117,1746468643483,-405.87468298,0.00019998,2]
[359995118,1746468643493,-450.0,0.00019998,2]
[359995119,1746468643503,-450.0,0.00019998,2]
[359995120,1746468643513,-450.0,0.00019998,2]
[359995122,1746468643523,-450.0,0.00019998,2]
[359995124,1746468643533,-248.85891665,0.00019998,2]
[359995126,1746468643542,-5019.05,0.00019998,2]
[359995127,1746468643551,-450.0,0.00019998,2]
[359995128,1746468643561,-450.0,0.00019998,2]
[359995129,1746468643570,-450.0,0.00019998,2]
[359995130,1746468643579,-450.0,0.00019998,2]
[359995131,1746468643589,-450.0,0.00019998,2]
[359995132,1746468643599,-450.0,0.00019998,2]
[359995133,1746468643608,-450.0,0.00019998,2]
[359995134,1746468643617,-450.0,0.00019998,2]
[359995135,1746468643628,-450.0,0.00019998,2]
[359995136,1746468643637,-666.0,0.00019999,2]
[359995137,1746468643647,-451.94,0.00019999,2]
[359995138,1746468643656,-450.0,0.00019999,2]
[359995139,1746468643665,-450.0,0.00019999,2]
[359995140,1746468643674,-450.0,0.00019999,2]
[359995141,1746468643684,-450.0,0.00019999,2]
[359995142,1746468643693,-450.0,0.00019999,2]
[359995143,1746468643702,-450.0,0.00019999,2]
[359995144,1746468643711,-450.0,0.00019999,2]
[359995145,1746468643721,-486.57628982,0.00019999,2]
[359995146,1746468643730,-450.0,0.00019999,2]
[359995147,1746468643741,-582.07,0.00019999,2]
[359995148,1746468643751,-450.0,0.00019999,2]
[359995149,1746468643760,-450.0,0.00019999,2]
[359995150,1746468643770,-450.0,0.00019999,2]
[359995151,1746468643779,-450.0,0.00019999,2]
[359995152,1746468643789,-450.0,0.00019999,2]
[359995153,1746468643798,-300.0,0.00019999,2]
[359995154,1746468643808,-554.03,0.00019999,2]
[359995155,1746468643817,-450.0,0.00019999,2]
[359995156,1746468643826,-450.0,0.00019999,2]
[359995157,1746468643835,-450.0,0.00019999,2]
[359995158,1746468643844,-450.0,0.00019999,2]
[359995159,1746468643853,-220.16788687,0.00019999,2]
[359995160,1746468643862,-472.18731909,0.00019999,2]
[359995161,1746468643872,-450.0,0.00019999,2]
[359995162,1746468643881,-450.0,0.00019999,2]
[359995163,1746468643890,-450.0,0.00019999,2]
[359995164,1746468643899,-450.0,0.00019999,2]
[359995165,1746468643910,-450.0,0.00019999,2]
[359995166,1746468643919,-450.0,0.00019999,2]
[359995167,1746468643928,-450.0,0.00019999,2]
[359995168,1746468643938,-468.42063572,0.00019999,2]
[359995169,1746468643947,-450.0,0.00019999,2]
[359995170,1746468643956,-450.0,0.00019999,2]
[359995171,1746468643966,-195.34,0.00019999,2]
[359995172,1746468643974,-450.0,0.00019999,2]
[359995173,1746468643983,-450.0,0.00019999,2]
[359995174,1746468643993,-450.0,0.00019999,2]
[359995175,1746468644002,-450.0,0.00019999,2]
[359995176,1746468644012,-450.0,0.00019999,2]
[359995177,1746468644022,-450.0,0.00019999,2]
[359995178,1746468644032,-450.0,0.00019999,2]
[359995179,1746468644041,-506.87,0.00019999,2]
[359995180,1746468644050,-450.0,0.00019999,2]
[359995181,1746468644060,-557.16,0.00019999,2]
[359995182,1746468644072,-450.0,0.00019999,2]
[359995183,1746468644083,-450.0,0.00019999,2]
[359995184,1746468644092,-428.05,0.00019999,2]
[359995185,1746468644102,-450.0,0.00019999,2]
[359995186,1746468644111,-450.0,0.00019999,2]
[359995187,1746468644121,-558.53,0.00019999,2]
[359995188,1746468644130,-173.95,0.00019999,2]
[359995189,1746468644139,-450.0,0.00019999,2]
[359995190,1746468644148,-450.0,0.00019999,2]
[359995191,1746468644157,-450.0,0.00019999,2]
[359995192,1746468644167,-349.99,0.00019999,2]
[359995193,1746468644177,-237.4,0.00019999,2]
[359995194,1746468644186,-450.0,0.00019999,2]
[359995195,1746468644196,-450.0,0.00019999,2]
[359995196,1746468644207,-450.0,0.00019999,2]
[359995197,1746468644217,-364.59,0.00019999,2]
[359995198,1746468644227,-500.0,0.00019999,2]
[359995199,1746468644236,-450.0,0.00019999,2]
[359995200,1746468644246,-159.51,0.00019999,2]
[359995201,1746468644257,-450.0,0.00019999,2]
[359995202,1746468644267,-450.0,0.00019999,2]
[359995203,1746468644278,-333.53539399,0.00019999,2]
[359995204,1746468644288,-450.0,0.00019999,2]
[359995205,1746468644298,-175.98200404,0.00019999,2]
[359995206,1746468644307,-450.0,0.00019999,2]
[359995207,1746468644316,-450.0,0.00019999,2]
[359995208,1746468644327,-450.0,0.00019999,2]
[359995209,1746468644337,-450.0,0.00019999,2]
[359995210,1746468644346,-450.0,0.00019999,2]
[359995211,1746468644357,-450.0,0.00019999,2]
[359995212,1746468644366,-394.49,0.00019999,2]
[359995213,1746468644375,-312.69658061,0.00019999,2]
[359995214,1746468644385,-493.04,0.00019999,2]
[359995215,1746468644396,-189.93,0.00019999,2]
[359995216,1746468644406,-565.01,0.00019999,2]
[359995217,1746468644415,-565.51,0.00019999,2]
[359995218,1746468644424,-450.0,0.00019999,2]
[359995219,1746468644433,-585.33,0.00019999,2]
[359995220,1746468644442,-450.0,0.00019999,2]
[359995221,1746468644451,-450.0,0.00019999,2]
[359995222,1746468644460,-450.0,0.00019999,2]
[359995223,1746468644470,-450.0,0.00019999,2]
[359995224,1746468644479,-450.0,0.00019999,2]
[359995225,1746468644488,-212.54,0.00019999,2]
[359995226,1746468644497,-450.0,0.00019999,2]
[359995227,1746468644506,-450.0,0.00019999,2]
[359995228,1746468644515,-450.0,0.00019999,2]
[359995229,1746468644524,-450.0,0.00019999,2]
[359995230,1746468644534,-450.0,0.00019999,2]
[359995231,1746468644543,-321.48,0.00019999,2]
[359995232,1746468644552,-450.0,0.00019999,2]
[359995233,1746468644561,-1725.77,0.00019999,2]
[359995234,1746468644570,-1725.77,0.00019999,2]
[359995235,1746468644580,-1725.77,0.00019999,2]
[359995236,1746468644589,-1725.77,0.00019999,2]
[359995237,1746468644598,-1725.77,0.00019999,2]
[359995238,1746468644607,-1725.77,0.00019999,2]
[359995239,1746468644617,-1725.77,0.00019999,2]
[359995240,1746468644627,-1725.77,0.00019999,2]
[359995241,1746468644637,-1725.77,0.00019999,2]
[359995242,1746468644646,-1725.77,0.00019999,2]
[359995243,1746468644656,-1725.77,0.00019999,2]
[359995244,1746468644665,-1725.77,0.00019999,2]
[359995245,1746468644674,-1725.77,0.00019999,2]
[359995246,1746468644683,-1725.77,0.00019999,2]
[359995247,1746468644694,-1725.77,0.00019999,2]
[359995248,1746468644703,-1725.77,0.00019999,2]
[359995249,1746468644713,-1725.77,0.00019999,2]
[359995250,1746468644722,-1725.77,0.00019999,2]
[359995251,1746468644731,-1725.77,0.00019999,2]
[359995252,1746468644740,-1725.77,0.00019999,2]
[359995253,1746468644749,-1725.77,0.00019999,2]
[359995254,1746468644758,-1725.77,0.00019999,2]
[359995255,1746468644767,-1726.00774821,0.00019999,2]
[359995256,1746468644777,-450.0,0.00019999,2]
[359995257,1746468644787,-450.0,0.00019999,2]
[359995258,1746468644796,-489.59,0.00019999,2]
[359995259,1746468644806,-721.09,0.00019999,2]
[359995260,1746468644815,-721.09,0.00019999,2]
[359995261,1746468644825,-721.09,0.00019999,2]
[359995262,1746468644834,-721.09,0.00019999,2]
[359995263,1746468644843,-721.09,0.00019999,2]
[359995264,1746468644852,-721.09,0.00019999,2]
[359995265,1746468644862,-721.09,0.00019999,2]
[359995266,1746468644871,-721.09,0.00019999,2]
[359995267,1746468644881,-721.09,0.00019999,2]
[359995268,1746468644891,-721.09,0.00019999,2]
[359995269,1746468644900,-721.09,0.00019999,2]
[359995270,1746468644910,-721.09,0.00019999,2]
[359995271,1746468644919,-721.09,0.00019999,2]
[359995272,1746468644929,-721.09,0.00019999,2]
[359995273,1746468644938,-721.09,0.00019999,2]
[359995274,1746468644947,-721.09,0.00019999,2]
[359995275,1746468644957,-721.09,0.00019999,2]
[359995276,1746468644967,-721.09,0.00019999,2]
[359995277,1746468644976,-721.09,0.00019999,2]
[359995278,1746468644985,-450.0,0.00019999,2]
[359995279,1746468644996,-721.09,0.00019999,2]
[359995280,1746468645005,-721.09,0.00019999,2]
[359995281,1746468645015,-721.09,0.00019999,2]
[359995282,1746468645024,-721.14,0.00019999,2]
[359995283,1746468645033,-450.0,0.00019999,2]
[359995284,1746468645043,-450.0,0.00019999,2]
[359995285,1746468645053,-450.0,0.00019999,2]
[359995286,1746468645064,-157.85,0.00019999,2]
[359995287,1746468645075,-481.94211817,0.00019999,2]
[359995288,1746468645084,-450.0,0.00019999,2]
[359995289,1746468645093,-450.0,0.00019999,2]
[359995290,1746468645102,-450.0,0.00019999,2]
[359995291,1746468645111,-348.86,0.00019999,2]
[359995292,1746468645121,-738.72,0.00019999,2]
[359995293,1746468645131,-738.72,0.00019999,2]
[359995294,1746468645140,-738.72,0.00019999,2]
[359995295,1746468645151,-738.72,0.00019999,2]
[359995296,1746468645161,-738.72,0.00019999,2]
[359995297,1746468645171,-738.72,0.00019999,2]
[359995298,1746468645180,-738.72,0.00019999,2]
[359995299,1746468645190,-738.72,0.00019999,2]
[359995300,1746468645199,-738.72,0.00019999,2]
[359995301,1746468645208,-738.72,0.00019999,2]
[359995302,1746468645218,-738.72,0.00019999,2]
[359995303,1746468645227,-738.72,0.00019999,2]
[359995304,1746468645237,-738.72,0.00019999,2]
[359995305,1746468645246,-738.72,0.00019999,2]
[359995306,1746468645256,-738.72,0.00019999,2]
[359995307,1746468645266,-738.72,0.00019999,2]
[359995308,1746468645276,-738.72,0.00019999,2]
[359995309,1746468645287,-738.72,0.00019999,2]
[359995310,1746468645296,-738.72,0.00019999,2]
[359995311,1746468645306,-738.72,0.00019999,2]
[359995312,1746468645315,-738.72,0.00019999,2]
[359995313,1746468645326,-738.72,0.00019999,2]
[359995314,1746468645335,-738.86,0.00019999,2]
[359995315,1746468645345,-450.0,0.00019999,2]
[359995316,1746468645355,-450.0,0.00019999,2]
[359995317,1746468645364,-450.0,0.00019999,2]
[359995318,1746468645374,-450.0,0.00019999,2]
[359995319,1746468645383,-450.0,0.00019999,2]
[359995320,1746468645394,-450.0,0.00019999,2]
[359995321,1746468645404,-226.13,0.00019999,2]
[359995322,1746468645413,-291.31094517,0.00019999,2]
[359995323,1746468645423,-521.59,0.00019999,2]
[359995324,1746468645432,-450.0,0.00019999,2]
[359995325,1746468645442,-450.0,0.00019999,2]
[359995326,1746468645452,-182.01186499,0.00019999,2]
[359995327,1746468645461,-450.0,0.00019999,2]
[359995328,1746468645471,-450.0,0.00019999,2]
[359995329,1746468645480,-5019.05,0.00019999,2]
[359995330,1746468645489,-5019.05,0.00019999,2]
[359995331,1746468645499,-5019.05,0.00019999,2]
[359995332,1746468645508,-5019.05,0.00019999,2]
[359995333,1746468645519,-5019.05,0.00019999,2]
[359995334,1746468645664,-5019.05,0.00019999,2]
[359995335,1746468645675,-5019.05,0.00019999,2]
[359995336,1746468645685,-409.02,0.00019999,2]
[359995337,1746468645694,-5019.05,0.00019999,2]
[359995338,1746468645704,-5019.05,0.00019999,2]
[359995339,1746468645715,-5019.05,0.00019999,2]
[359995340,1746468645724,-5019.05,0.00019999,2]
[359995341,1746468645734,-5019.05,0.00019999,2]
[359995342,1746468645746,-5019.05,0.00019999,2]
[359995343,1746468645756,-5019.05,0.00019999,2]
[359995344,1746468645766,-465.04,0.00019999,2]
[359995345,1746468645776,-5019.05,0.00019999,2]
[359995346,1746468645786,-5019.05,0.00019999,2]
[359995347,1746468645796,-5019.05,0.00019999,2]
[359995348,1746468645806,-450.0,0.00019999,2]
[359995349,1746468645816,-5019.05,0.00019999,2]
[359995350,1746468645826,-453.23,0.00019999,2]
[359995351,1746468645836,-5019.05,0.00019999,2]
[359995352,1746468645846,-3837.06205026,0.00019999,2]
[359995353,1746468645867,-574.51572812,0.00019999,2]
[359995354,1746468645879,-607.47222162,0.00019999,2]
[359995355,1746468645888,-826.57402838,0.00019999,2]
[359995356,1746468645900,-4192.47597162,0.00019999,2]
[359995357,1746468645909,-5019.2172,0.00019999,2]
[359995358,1746468645919,-201.65,0.00019999,2]
[359995359,1746468645928,-450.0,0.00019999,2]
[359995360,1746468645938,-450.0,0.00019999,2]
[359995361,1746468645948,-450.0,0.00019999,2]
[359995362,1746468645958,-231.24,0.00019999,2]
[359995363,1746468645971,-500.0,0.00019999,2]
[359995364,1746468645980,-500.0,0.00019999,2]
[359995365,1746468645991,-500.0,0.00019999,2]
[359995367,1746468646001,-178.78371563,0.00019999,2]
[359995368,1746468646011,-781.0,0.0002,2]
[359995369,1746468646021,-399.53556651,0.0002,2]
[359995370,1746468646030,-181301.05506809,0.0002,2]
[359995371,1746468646042,-256603.49958335,0.0002,2]
[359995372,1746468646051,-892514.09438962,0.0002,2]
[359995373,1746468646209,-3.12467409,0.0002,2]
[359995374,1746468646220,-310.99176234,0.0002,2]
[359995375,1746468646231,-947.86,0.0002,2]
[359995376,1746468646278,-554.3927943,0.0002,2]
[359995378,1746468646964,-51704.5465371,0.0002,2]
[359995379,1746468646976,-63267.40620345,0.0002,2]
[359995380,1746468646987,-4014.88866804,0.0002,2]
[359995381,1746468646999,-13759.78255142,0.0002,2]
[359995382,1746468912736,-166.66,0.00019571,2]
[359995383,1746468912760,-1.919952,0.000196,2]
[359995384,1746468917363,21960.12,0.00019041,2]
[359995385,1746468921165,-168.32156732,0.000196,2]
[359995386,1746468925388,-29.75848068,0.000196,2]
[359995387,1746468976348,1000.0,0.00019042,2]
[359995388,1746469027690,5697.45,0.00019049,2]
[359995389,1746469027959,5697.45,0.00019054,2]
[359995390,1746469028201,5697.45,0.00019059,2]
[359995391,1746469028434,5697.45,0.00019064,2]
[359995392,1746469028644,5697.45,0.00019069,2]
[359995393,1746469028863,5697.45,0.00019074,2]
[359995394,1746469029068,5697.45,0.00019079,2]
[359995395,1746469029368,5697.45,0.00019084,2]
[359995396,1746469029570,5697.45,0.00019089,2]
[359995397,1746469029773,5697.45,0.00019094,2]
[359995398,1746469029995,228.23968215,0.00019099,2]
[359995399,1746469030244,5469.21031785,0.00019099,2]
[359995400,1746469030279,5697.45,0.00019104,2]
[359995401,1746469030446,5697.45,0.00019109,2]
[359995402,1746469030686,5697.45,0.00019114,2]
[359995403,1746469030962,5697.45,0.0001912,2]
[359995404,1746469031196,5697.45,0.00019125,2]
[359995405,1746469031434,5697.45,0.0001913,2]
[359995406,1746469031655,5697.45,0.00019135,2]
[359995407,1746469031893,5697.45,0.0001914,2]
[359995408,1746469032280,5697.45,0.00019145,2]
[359995409,1746469042252,200.0,0.00019045,2]
[359995410,1746469453807,748.9,0.00017122,2]
[359995411,1746469454011,748.9,0.00019386,2]
[359995412,1746469501488,151.9,0.00019018,2]
[359995417,1746469621134,250.0,0.00017,2]
[359995418,1746469622225,300.0,0.00019,2]
[359995425,1746469694566,168.83,0.00018953,2]
[359995426,1746469713632,250.0,0.00018949,2]
[359995427,1746469735893,156.26,0.00019025,2]
[359995460,1746469775234,5394.17,0.00018952,2]
[359995463,1746469828705,6056.56,0.00018952,2]
[359995469,1746469831584,-200.0,0.0001971,2]
[359995470,1746469831596,-250.0,0.00019721,2]
[359995471,1746469831605,-153.06415769,0.00019798,2]
[359995472,1746469831615,-371.3212133,0.00019799,2]
[359995473,1746469831626,-200.0,0.000198,2]
[359995474,1746469831639,-200.0,0.00019801,2]
[359995476,1746469831649,-124.82978565,0.00019888,2]
[359995478,1746469831661,-82.57021435,0.00019888,2]
[359995480,1746469831671,-300.0,0.00019898,2]
[359995482,1746469831681,-106.29588978,0.00019898,2]
[359995485,1746469831693,-493.70411022,0.00019898,2]
[359995487,1746469831703,-185.13641338,0.00019899,2]
[359995527,1746469837377,-409.76328662,0.00019899,2]
[359995528,1746469837386,-703.21157523,0.00019899,2]
[359995529,1746469837396,-300.0,0.00019899,2]
[359995530,1746469837405,-1200.0,0.00019899,2]
[359995531,1746469837415,-703.21157515,0.00019899,2]
[359995532,1746469837425,-703.21157515,0.00019899,2]
[359995533,1746469837435,-703.21157515,0.00019899,2]
[359995534,1746469837444,-703.21157515,0.00019899,2]
[359995535,1746469837453,-703.21157515,0.000199,2]
[359995536,1746469837462,-703.21157515,0.000199,2]
[359995537,1746469837472,-703.21157515,0.000199,2]
[359995538,1746469837481,-703.21157515,0.000199,2]
[359995539,1746469837491,-703.21157515,0.000199,2]
[359995540,1746469837500,-10045.76417216,0.000199,2]
[359995541,1746469837512,-807.35583064,0.000199,2]
[359995542,1746469837538,-3599.1,0.000199,2]
[359995543,1746469837554,-261.92,0.000199,2]
[359995544,1746469837593,-721.7900141,0.000199,2]
[359995545,1746469837605,-7058.79633906,0.000199,2]
[359995546,1746469837648,-1041.64217642,0.000199,2]
[359995547,1746469837660,-963.33237,0.000199,2]
[359995548,1746469837671,-1467.40062353,0.000199,2]
[359995552,1746469839495,-368.16999,0.000199,2]
[359995553,1746469839658,-480.7410951,0.000199,2]
[359995554,1746469839670,-1691.63592498,0.000199,2]
[359995555,1746469839681,-243.21824076,0.000199,2]
[359995556,1746469839691,-857.85676024,0.000199,2]
[359995557,1746469839712,-341.86579367,0.000199,2]
[359995558,1746469839769,-3229.39774609,0.000199,2]
[359995559,1746469839779,-488.19944184,0.000199,2]
[359995560,1746469839789,-1000.0,0.000199,2]
[359995561,1746469839799,-26185.56248075,0.0001992,2]
[359995562,1746469839811,-2435.5180531,0.0001992,2]
[359995563,1746469839821,-6816.502,0.0001993,2]
[359995564,1746469839831,-925.0,0.0001993,2]
[359995565,1746469839840,-1300.004,0.0001993,2]
[359995566,1746469839849,-4086.635,0.0001993,2]
[359995567,1746469839858,-878.0,0.0001993,2]
[359995568,1746469839868,-1141.0,0.0001993,2]
[359995569,1746469839879,-5931.0,0.0001993,2]
[359995570,1746469839889,-250.0,0.0001995,2]
[359995571,1746469839899,-500.0,0.00019973,2]
[359995572,1746469839909,-500.0,0.00019973,2]
[359995573,1746469839919,-500.0,0.00019973,2]
[359995574,1746469839928,-1908.029,0.00019985,2]
[359995575,1746469839938,-22161.7168002,0.00019986,2]
[359995576,1746469839947,-1987.935635,0.00019986,2]
[359995577,1746469839956,-223.4809593,0.00019986,2]
[359995578,1746469839966,-1953.4826024,0.00019986,2]
[359995579,1746469839975,-169.2306636,0.00019986,2]
[359995580,1746469839985,-450.0,0.00019997,2]
[359995581,1746469839995,-450.0,0.00019998,2]
[359995582,1746469840004,-500.0,0.00019998,2]
[359995583,1746469840013,-500.0,0.00019998,2]
[359995584,1746469840023,-591.57619644,0.00019998,2]
[359995585,1746469840032,-1000.0,0.00019999,2]
[359995586,1746469840041,-1000.0,0.00019999,2]
[359995587,1746469840050,-1030.0,0.00019999,2]
[359995588,1746469840059,-500.0,0.00019999,2]
[359995589,1746469840068,-666.0,0.00019999,2]
[359995590,1746469840078,-500.0,0.00019999,2]
[359995591,1746469840086,-450.0,0.00019999,2]
[359995592,1746469840095,-450.0,0.00019999,2]
[359995593,1746469840104,-481.94211817,0.00019999,2]
[359995594,1746469840114,-193.25,0.00019999,2]
[359995595,1746469840123,-450.0,0.00019999,2]
[359995596,1746469840133,-450.0,0.00019999,2]
[359995597,1746469840143,-291.31094517,0.00019999,2]
[359995598,1746469840152,-450.0,0.00019999,2]
[359995599,1746469840161,-450.0,0.00019999,2]
[359995600,1746469840170,-450.0,0.00019999,2]